fUSD/lending_fUSD_20260309
["ID","MTS","AMOUNT","RATE_DAILY","PERIOD"]
[408060381,1773088234286,-493.26,0.00019817,2]
[408060382,1773088234295,-493.26,0.00019817,2]
[408060383,1773088234305,-493.26,0.00019817,2]
[408060384,1773088234314,-493.26,0.00019817,2]
[408060385,1773088234323,-493.26,0.00019817,2]
[408060386,1773088234333,-493.26,0.00019817,2]
[408060387,1773088234343,-493.26,0.00019817,2]
[408060388,1773088234352,-493.26,0.00019817,2]
[408060389,1773088234362,-493.26,0.00019817,2]
[408060390,1773088234372,-493.26,0.00019817,2]
[408060391,1773088234381,-493.26,0.00019817,2]
[408060392,1773088234391,-493.26,0.00019817,2]
[408060393,1773088234400,-493.26,0.00019817,2]
[408060394,1773088234410,-493.26,0.00019817,2]
[408060395,1773088234419,-493.26,0.00019817,2]
[408060396,1773088234428,-493.26,0.00019817,2]
[408060397,1773088234438,-493.26,0.00019817,2]
[408060398,1773088234447,-493.26,0.00019817,2]
[408060399,1773088234457,-493.26,0.00019817,2]
[408060400,1773088234467,-493.26,0.00019817,2]
[408060401,1773088234477,-493.26,0.00019817,2]
[408060402,1773088234487,-493.26,0.00019817,2]
[408060403,1773088234497,-493.26,0.00019817,2]
[408060404,1773088234507,-493.26,0.00019817,2]
[408060405,1773088234516,-493.26,0.00019817,2]
[408060406,1773088234526,-493.26,0.00019817,2]
[408060407,1773088234535,-493.26,0.00019817,2]
[408060408,1773088234545,-493.26,0.00019817,2]
[408060409,1773088234554,-493.26,0.00019817,2]
[408060410,1773088234564,-923.52,0.00019817,2]
[408060411,1773088234573,-1919.73590611,0.00019829,2]
[408060412,1773088234582,-1000.0,0.00019831,2]
[408060413,1773088234591,-250.0,0.00019837,2]
[408060414,1773088234601,-498.0,0.00019837,2]
[408060415,1773088234610,-500.0,0.00019837,2]
[408060416,1773088234619,-500.0,0.00019837,2]
[408060417,1773088234628,-500.0,0.00019837,2]
[408060418,1773088234638,-500.0,0.00019837,2]
[408060419,1773088234647,-200.0,0.0001984,2]
[408060420,1773088234657,-1919.73590611,0.00019843,2]
[408060421,1773088234668,-150.0,0.00019844,2]
[408060422,1773088234678,-1000.0,0.00019851,2]
[408060423,1773088234687,-1000.0,0.00019852,2]
[408060424,1773088234697,-1919.73590611,0.00019857,2]
[408060425,1773088234707,-1000.0,0.0001986,2]
[408060426,1773088234717,-179.9875646,0.0001986,2]
[408060427,1773088234726,-1000.0,0.00019861,2]
[408060428,1773088234737,-1000.0,0.00019871,2]
[408060429,1773088234747,-1919.73590611,0.00019871,2]
[408060430,1773088234758,-1000.0,0.00019875,2]
[408060431,1773088234773,-250.0,0.00019883,2]
[408060432,1773088234782,-1919.73590611,0.00019886,2]
[408060433,1773088234791,-2807.676,0.00019891,2]
[408060434,1773088234801,-171.255,0.00019891,2]
[408060435,1773088234811,-498.0,0.00019892,2]
[408060436,1773088234821,-500.0,0.00019892,2]
[408060437,1773088234831,-500.0,0.00019892,2]
[408060438,1773088234842,-500.0,0.00019892,2]
[408060439,1773088234854,-500.0,0.00019898,2]
[408060440,1773088234863,-500.0,0.00019898,2]
[408060441,1773088234873,-500.0,0.00019898,2]
[408060442,1773088234882,-500.0,0.00019899,2]
[408060443,1773088234893,-500.0,0.00019899,2]
[408060444,1773088234902,-5800.0,0.000199,2]
[408060445,1773088234912,-3808.72959848,0.000199,2]
[408060446,1773088234923,-5000.0,0.000199,2]
[408060447,1773088234932,-150.0,0.000199,2]
[408060448,1773088234941,-1919.73590611,0.000199,2]
[408060449,1773088234951,-3048.0,0.000199,2]
[408060450,1773088234961,-1000.0,0.00019903,2]
[408060451,1773088234971,-250.0,0.00019926,2]
[408060452,1773088234981,-151.0,0.00019935,2]
[408060453,1773088234990,-168.0,0.00019941,2]
[408060454,1773088235000,-498.0,0.00019947,2]
[408060455,1773088235009,-500.0,0.00019947,2]
[408060456,1773088235018,-500.0,0.00019947,2]
[408060457,1773088235028,-323.95112934,0.00019947,2]
[408060458,1773088235038,-250.0,0.0001995,2]
[408060459,1773088235048,-150.0,0.00019958,2]
[408060460,1773088235057,-1000.0,0.00019959,2]
[408060461,1773088235067,-1000.0,0.00019959,2]
[408060462,1773088235077,-250.0,0.00019963,2]
[408060463,1773088235086,-151.0,0.00019967,2]
[408060464,1773088235106,-500.0,0.00019973,2]
[408060465,1773088235116,-1000.0,0.00019984,2]
[408060466,1773088235126,-1000.0,0.00019988,2]
[408060467,1773088235137,-7495.1630728,0.00019994,2]
[408060468,1773088235148,-3028.8705256,0.00019994,2]
[408060469,1773088235158,-7136.5934787,0.00019994,2]
[408060470,1773088235168,-151.0,0.00019997,2]
[408060471,1773088235179,-1000.0,0.00019997,2]
[408060472,1773088235189,-500.0,0.00019998,2]
[408060473,1773088235199,-300.0,0.00019999,2]
[408060474,1773088235209,-3823.62,0.00019999,2]
[408060475,1773088235218,-3823.62,0.00019999,2]
[408060476,1773088235228,-3823.62,0.00019999,2]
[408060477,1773088235238,-3823.62,0.00019999,2]
[408060478,1773088235247,-3823.62,0.00019999,2]
[408060479,1773088235257,-3823.62,0.00019999,2]
[408060480,1773088235267,-3823.62,0.00019999,2]
[408060481,1773088235277,-3823.62,0.00019999,2]
[408060482,1773088235286,-3823.62,0.00019999,2]
[408060483,1773088235296,-3823.62,0.00019999,2]
[408060484,1773088235306,-3823.62,0.00019999,2]
[408060485,1773088235316,-3823.62,0.00019999,2]
[408060486,1773088235326,-687.56612713,0.00019999,2]
[408060487,1773088235342,-3136.05387287,0.00019999,2]
[408060488,1773088235352,-3823.62,0.00019999,2]
[408060489,1773088235361,-3823.62,0.00019999,2]
[408060490,1773088235371,-3823.62,0.00019999,2]
[408060491,1773088235381,-194.91925714,0.00019999,2]
[408060492,1773088235397,-1943.01182523,0.00019999,2]
[408060497,1773088237825,-502.0,0.00017,2]
[408060498,1773088237838,-151.67524627,0.0001949,2]
[408060499,1773088237851,-151.67524621,0.00019549,2]
[408060500,1773088237863,-1685.68891763,0.00019999,2]
[408060501,1773088237875,-3823.62,0.00019999,2]
[408060502,1773088237885,-3823.62,0.00019999,2]
[408060503,1773088237895,-3823.62,0.00019999,2]
[408060514,1773088237907,-3823.64,0.00019999,2]
[408060521,1773088238235,-51214.4605899,0.00019999,2]
[408060524,1773088238247,-490.73698822,0.00019999,2]
[408060526,1773088238258,-3239.94984,0.00019999,2]
[408060528,1773088238269,-1553.52,0.00019999,2]
[408060533,1773088238301,-16786.47801248,0.00019999,2]
[408060535,1773088238310,-11369.8518749,0.00019999,2]
[408060537,1773088238319,-500.0,0.00019999,2]
[408060539,1773088238329,-457.69073336,0.00019999,2]
[408060540,1773088238338,-500.0,0.00019999,2]
[408060541,1773088238347,-500.0,0.00019999,2]
[408060542,1773088238356,-445.10711154,0.00019999,2]
[408060543,1773088238365,-500.0,0.00019999,2]
[408060544,1773088238374,-500.0,0.00019999,2]
[408060545,1773088238383,-257.93235635,0.00019999,2]
[408060546,1773088238392,-500.0,0.00019999,2]
[408060547,1773088238401,-462.33752075,0.00019999,2]
[408060548,1773088238411,-3803.0,0.0002,2]
[408060549,1773088238420,-150.0,0.0002,2]
[408060550,1773088238429,-30267.6023905,0.0002,2]
[408060551,1773088238441,-58498.18348875,0.0002,2]
[408060552,1773088238463,-1159.41324796,0.0002,2]
[408060553,1773088238490,-568.29265072,0.0002,2]
[408060558,1773088240046,-508.73271033,0.0002,2]
[408060559,1773088240057,-1063.79715376,0.0002,2]
[408060560,1773088240103,-3685.0,0.0002,2]
[408060561,1773088240266,-253764.13347106,0.0002,2]
[408060562,1773088240322,-18978.38954278,0.0002,2]
[408060563,1773088240331,-45619.88762385,0.0002,2]
[408060564,1773088240341,-257867.37731198,0.0002,2]
[408060565,1773088240378,-505.0,0.0002,2]
[408060566,1773088240596,-4756.99305219,0.0002,2]
[408060588,1773088243125,-151.67524621,0.00019607,2]
[408060589,1773088243135,-17908.80162042,0.0002,2]
[408060598,1773088245870,-901.02194828,0.0002,2]
[408060599,1773088245881,-646.0500007,0.0002,2]
[408060602,1773088246012,-611.6673398,0.0002,2]
[408060603,1773088246035,-2000.0,0.0002,2]
[408060606,1773088469996,157.79,9.356e-05,2]
[408060607,1773088470197,157.79,0.00011228,2]
[408060608,1773088470431,157.79,0.00013099,2]
[408060609,1773088678806,177.95,0.00014,2]
[408060610,1773088872232,3756.0,0.000149,5]
[408060611,1773088930434,500.0,0.0001497,2]
[408060612,1773088931774,500.0,0.0001497,2]
[408060613,1773088931967,500.0,0.0001497,2]
[408060614,1773088932289,500.0,0.0001497,2]
[408060615,1773088933012,500.0,0.0001497,2]
[408060616,1773088933621,500.0,0.0001497,2]
[408060617,1773088934216,500.0,0.0001497,2]
[408060618,1773088934564,200.0,0.0001497,2]
[408060619,1773088935343,500.0,0.0001497,2]
[408060620,1773088935949,500.0,0.0001497,2]
[408060621,1773088936569,500.0,0.0001497,2]
[408060622,1773088937172,500.0,0.0001497,2]
[408060623,1773088937974,366.06,0.0001497,2]
[408060624,1773088937999,133.94,0.0001497,2]
[408060625,1773088938553,500.0,0.0001497,2]
[408060626,1773088939150,500.0,0.0001497,2]
[408060627,1773088939739,500.0,0.0001497,2]
[408060628,1773088939826,151.0,0.0001497,2]
[408060629,1773088940369,500.0,0.0001497,2]
[408060630,1773088940428,151.0,0.0001497,2]
[408060631,1773088941027,151.0,0.0001497,2]
[408060632,1773088941643,151.0,0.0001497,2]
[408060633,1773088942581,151.0,0.0001497,2]
[408060634,1773088942796,151.0,0.0001497,2]
[408060635,1773088943396,151.0,0.0001497,2]
[408060636,1773088944032,192.51129899,0.0001497,2]
[408060637,1773088944710,151.0,0.0001497,2]
[408060638,1773088945302,151.0,0.0001497,2]
[408060639,1773088945941,151.0,0.0001497,2]
[408060640,1773088946535,151.0,0.0001497,2]
[408060641,1773088947153,151.0,0.0001497,2]
[408060642,1773088947752,151.0,0.0001497,2]
[408060643,1773088961395,2287.495079,0.00014895,2]
[408060644,1773089069224,439.86,0.00014,7]
[408060645,1773089073543,200.0,0.000149,2]
[408060679,1773089216263,200.0,0.000149,2]
[408060680,1773089231278,500.0,0.0001497,2]
[408060681,1773089231441,229.55416592,0.0001497,2]
[408060682,1773089235569,200.0,0.0001497,2]
[408060683,1773089236431,165.25044418,0.000149,2]
[408060684,1773089238799,500.0,0.0001497,2]
[408060685,1773089239370,151.0,0.0001497,2]
[408060686,1773089239683,500.0,0.0001497,2]
[408060687,1773089239964,151.0,0.0001497,2]
[408060688,1773089240279,186.39901191,0.0001497,2]
[408060689,1773089240305,313.60098809,0.0001497,2]
[408060690,1773089240572,151.0,0.0001497,2]
[408060691,1773089240864,500.0,0.0001497,2]
[408060692,1773089242120,151.0,0.0001497,2]
[408060693,1773089242185,500.0,0.0001497,2]
[408060694,1773089242293,151.0,0.0001497,2]
[408060695,1773089242427,151.0,0.0001497,2]
[408060696,1773089242964,151.0,0.0001497,2]
[408060697,1773089243744,151.0,0.0001497,2]
[408060698,1773089244353,151.0,0.0001497,2]
[408060699,1773089244959,151.0,0.0001497,2]
[408060700,1773089288251,2325.872557,7.945e-05,2]
[408060702,1773089327699,197.13285115,0.0001,2]
[408060738,1773089432251,-158.0,0.0001497,2]
[408060740,1773089432261,-500.0,0.0001497,2]
[408060741,1773089432270,-20.45,0.0001497,2]
[408060742,1773089432281,-229.55,0.0001497,2]
[408060743,1773089432291,-157.79,0.0001497,2]
[408060744,1773089432300,-600.0,0.00014972,2]
[408060745,1773089432309,-500.0,0.00014977,2]
[408060746,1773089432318,-418.238901,0.00014977,2]
[408060747,1773089432327,-250.0,0.00015,2]
[408060748,1773089432337,-14.421099,0.00015001,2]
[408060749,1773089432373,-235.578901,0.00015001,2]
[408060750,1773089432383,-397.51447815,0.00015092,2]
[408060751,1773089432394,-202.48552185,0.00015092,2]
[408060752,1773089432404,-200.0,0.00015518,2]
[408060753,1773089432413,-300.0,0.00015642,2]
[408060754,1773089432423,-300.0,0.00015642,2]
[408060755,1773089432432,-1200.0,0.00015642,2]
[408060756,1773089432442,-182.94091312,0.00015642,2]
[408060757,1773089432453,-117.05908688,0.00015642,2]
[408060758,1773089432462,-150.0,0.00015643,7]
[408060759,1773089432471,-661.57779,0.00015643,7]
[408060760,1773089432480,-933.66632712,0.00015643,7]
[408060761,1773089432492,-239.48925388,0.00015643,7]
[408060762,1773089432501,-1684.733371,0.00015643,7]
[408060763,1773089432511,-2196.311162,0.00015643,7]
[408060764,1773089432520,-2707.888952,0.00015643,7]
[408060765,1773089432529,-3219.466743,0.00015643,7]
[408060766,1773089432539,-3731.044533,0.00015643,7]
[408060767,1773089432548,-2071.66598512,0.00015643,7]
[408060768,1773089432559,-2170.95633888,0.00015643,7]
[408060769,1773089432569,-4754.200114,0.00015643,7]
[408060770,1773089432579,-434.48019392,0.00015779,2]
[408060771,1773089432588,-200.0,0.00015844,2]
[408060772,1773089432598,-1000.0,0.00016424,2]
[408060773,1773089432607,-11145.909352,0.00016425,7]
[408060774,1773089432617,-415.1070999,0.00016457,2]
[408060775,1773089432626,-250.0,0.00016467,2]
[408060776,1773089432636,-179.49839145,0.00016467,2]
[408060777,1773089432645,-2500.0,0.00016467,2]
[408060778,1773089432654,-2500.0,0.00016467,2]
[408060779,1773089432664,-2500.0,0.00016467,2]
[408060780,1773089432673,-2500.0,0.00016467,2]
[408060781,1773089432683,-533.9384128,0.00016467,2]
[408060782,1773089432692,-500.0,0.00016467,2]
[408060783,1773089432701,-195.0,0.00016467,2]
[408060784,1773089432711,-195.0,0.00016467,2]
[408060785,1773089432721,-195.0,0.00016467,2]
[408060786,1773089432730,-195.0,0.00016467,2]
[408060787,1773089432739,-600.0,0.00016467,2]
[408060788,1773089432748,-300.0,0.00016467,2]
[408060789,1773089432758,-500.0,0.000165,2]
[408060790,1773089432767,-500.0,0.000165,2]
[408060791,1773089432776,-152.0,0.0001669,3]
[408060792,1773089432786,-166.66,0.00016698,2]
[408060793,1773089432796,-510.0,0.00016768,2]
[408060794,1773089432805,-157.79,0.00016842,2]
[408060795,1773089432814,-503.0,0.00017,2]
[408060796,1773089432824,-1000.0,0.00017048,2]
[408060797,1773089432834,-1000.0,0.00017048,2]
[408060798,1773089432843,-166.66,0.00017049,2]
[408060799,1773089432853,-420.0,0.00017108,2]
[408060800,1773089432863,-203.0,0.00017194,2]
[408060801,1773089432873,-150.0,0.00017247,2]
[408060802,1773089432883,-3924.85,0.00017363,2]
[408060803,1773089432892,-166.66,0.00017401,2]
[408060804,1773089432903,-2765.59,0.00017417,2]
[408060805,1773089432912,-158.0,0.0001755,3]
[408060806,1773089432921,-787.80347915,0.00017596,2]
[408060807,1773089432931,-152.0,0.00017735,4]
[408060808,1773089432941,-166.66,0.00017752,2]
[408060809,1773089432950,-314.0,0.00017972,2]
[408060810,1773089432960,-3863.915242,0.00017989,7]
[408060811,1773089432970,-166.66,0.00018022,2]
[408060812,1773089432980,-166.66,0.00018104,2]
[408060813,1773089432990,-511.0,0.00018164,2]
[408060814,1773089432999,-500.0,0.00018164,2]
[408060815,1773089433008,-1000.0,0.00018211,2]
[408060816,1773089433018,-286.12,0.00018254,2]
[408060817,1773089433028,-500.0,0.00018266,2]
[408060818,1773089433037,-2765.59,0.00018288,2]
[408060819,1773089433047,-500.0,0.00018356,7]
[408060820,1773089433056,-500.0,0.00018356,7]
[408060821,1773089433066,-500.0,0.00018356,7]
[408060822,1773089433076,-500.0,0.00018367,2]
[408060823,1773089433090,-500.0,0.00018367,2]
[408060824,1773089433100,-2000.0,0.00018367,2]
[408060825,1773089433109,-166.66,0.00018455,2]
[408060826,1773089433119,-587.0,0.00018711,2]
[408060827,1773089433130,-157.79,0.00018713,2]
[408060828,1773089433139,-166.66,0.00018766,2]
[408060829,1773089433149,-200.0,0.00018774,2]
[408060830,1773089433159,-152.0,0.00018779,5]
[408060831,1773089433168,-200.0,0.00018893,2]
[408060832,1773089433178,-503.0,0.00018909,3]
[408060833,1773089433188,-1000.0,0.00018999,2]
[408060834,1773089433197,-1896.48987267,0.00018999,2]
[408060835,1773089433206,-250.0,0.00018999,2]
[408060836,1773089433216,-1613.02701518,0.00018999,2]
[408060837,1773089433225,-174.61919141,0.00018999,2]
[408060838,1773089433235,-1552.28,0.00019007,2]
[408060839,1773089433244,-847.0,0.0001904,2]
[408060840,1773089433253,-3109.13,0.00019106,2]
[408060841,1773089433263,-2765.59,0.00019159,2]
[408060842,1773089433273,-1000.0,0.00019178,2]
[408060843,1773089433282,-5318.74,0.00019339,2]
[408060844,1773089433291,-150.99,0.00019339,2]
[408060845,1773089433300,-160.24329577,0.00019425,2]
[408060846,1773089433309,-500.0,0.00019452,7]
[408060847,1773089433318,-500.0,0.00019452,7]
[408060848,1773089433329,-1000.0,0.00019452,2]
[408060849,1773089433338,-153.01021088,0.000195,3]
[408060850,1773089433348,-1642.39446644,0.000195,2]
[408060851,1773089433358,-166.66,0.00019509,2]
[408060852,1773089433368,-1000.0,0.00019547,2]
[408060853,1773089433377,-181.08010149,0.00019547,2]
[408060854,1773089433390,-864.76525023,0.000196,2]
[408060855,1773089433400,-1000.0,0.000196,2]
[408060856,1773089433410,-3756.46189792,0.000196,2]
[408060857,1773089433427,-981.47839901,0.000196,2]
[408060858,1773089433440,-16860.67670307,0.000196,2]
[408060859,1773089433450,-3611.3144,0.000196,2]
[408060860,1773089433459,-1177.8432,0.000196,2]
[408060861,1773089433468,-322.0,0.00019661,2]
[408060862,1773089433483,-500.0,0.00019673,2]
[408060863,1773089433492,-150.0,0.00019673,2]
[408060864,1773089433501,-150.0,0.00019673,2]
[408060865,1773089433511,-150.0,0.00019673,2]
[408060866,1773089433520,-500.0,0.00019673,2]
[408060867,1773089433529,-150.0,0.00019673,2]
[408060868,1773089433539,-150.0,0.00019673,2]
[408060869,1773089433548,-150.0,0.00019673,2]
[408060870,1773089433557,-500.0,0.00019673,2]
[408060871,1773089433566,-150.0,0.00019673,2]
[408060872,1773089433575,-150.0,0.00019673,2]
[408060873,1773089433584,-500.0,0.00019673,2]
[408060874,1773089433594,-500.0,0.00019673,2]
[408060875,1773089433603,-492.0,0.00019673,2]
[408060876,1773089433613,-150.0,0.00019673,2]
[408060877,1773089433623,-150.0,0.00019673,2]
[408060878,1773089433632,-153.91,0.00019673,2]
[408060879,1773089433641,-150.0,0.00019673,2]
[408060880,1773089433652,-2091.0,0.0001968,2]
[408060881,1773089433661,-1618.607479,0.00019696,2]
[408060882,1773089433670,-2500.0,0.00019699,2]
[408060883,1773089433680,-2000.0,0.000197,2]
[408060884,1773089433690,-1618.60747896,0.00019719,2]
[408060885,1773089433700,-160.0,0.00019719,2]
[408060886,1773089433709,-172.87392778,0.00019719,2]
[408060887,1773089433718,-1000.0,0.00019725,2]
[408060888,1773089433727,-1000.0,0.00019726,2]
[408060889,1773089433737,-500.0,0.00019728,2]
[408060890,1773089433746,-150.0,0.00019728,2]
[408060891,1773089433756,-150.0,0.00019728,2]
[408060892,1773089433765,-150.0,0.00019728,2]
[408060893,1773089433774,-500.0,0.00019728,2]
[408060894,1773089433784,-150.0,0.00019728,2]
[408060895,1773089433793,-150.0,0.00019728,2]
[408060896,1773089433803,-500.0,0.00019728,2]
[408060897,1773089433812,-150.0,0.00019728,2]
[408060898,1773089433821,-150.0,0.00019728,2]
[408060899,1773089433831,-500.0,0.00019728,2]
[408060900,1773089433840,-500.0,0.00019728,2]
[408060901,1773089433849,-492.0,0.00019728,2]
[408060902,1773089433859,-150.0,0.00019728,2]
[408060903,1773089433868,-150.0,0.00019728,2]
[408060904,1773089433877,-150.0,0.00019728,2]
[408060905,1773089433886,-1618.60747896,0.00019741,2]
[408060906,1773089433896,-1618.60747896,0.00019764,2]
[408060907,1773089433905,-378.76476108,0.00019781,2]
[408060908,1773089433914,-500.0,0.00019783,2]
[408060909,1773089433924,-200.0,0.00019783,2]
[408060910,1773089433933,-200.0,0.00019783,2]
[408060911,1773089433942,-150.0,0.00019783,2]
[408060912,1773089433951,-500.0,0.00019783,2]
[408060913,1773089433961,-150.0,0.00019783,2]
[408060914,1773089433970,-500.0,0.00019783,2]
[408060915,1773089433980,-150.0,0.00019783,2]
[408060916,1773089433989,-200.0,0.00019783,2]
[408060917,1773089433998,-500.0,0.00019783,2]
[408060918,1773089434007,-517.0,0.00019783,2]
[408060919,1773089434016,-492.0,0.00019783,2]
[408060920,1773089434026,-200.0,0.00019783,2]
[408060921,1773089434035,-150.0,0.00019783,2]
[408060922,1773089434045,-162.24821319,0.00019783,2]
[408060923,1773089434054,-1618.60747896,0.00019787,2]
[408060924,1773089434064,-253.67,0.00019798,2]
[408060925,1773089434073,-500.0,0.00019798,2]
[408060926,1773089434083,-46409.56794955,0.00019799,2]
[408060927,1773089434098,-15884.88568805,0.00019799,2]
[408060931,1773089437918,-334.615,0.00019239,2]
[408060932,1773089438215,-532.965,0.00019239,2]
[408060933,1773089438244,-9.46464904,0.00019673,2]
[408060935,1773089438266,-490.53535096,0.00019673,2]
[408060936,1773089438275,-200.0,0.00019673,2]
[408060937,1773089438285,-23.18112101,0.00019673,2]
[408060938,1773089438306,-476.81887899,0.00019673,2]
[408060940,1773089438317,-500.0,0.00019728,2]
[408060941,1773089438326,-500.0,0.00019783,2]
[408060943,1773089438335,-2523.181121,0.00019799,2]
[408060945,1773089438346,-15711.9937414,0.00019799,2]
[408060947,1773089438357,-4598.0062586,0.000198,2]
[408060948,1773089438384,-150.0,0.00019673,2]
[408060949,1773089438393,-500.0,0.00019728,2]
[408060950,1773089438402,-739.5563097,0.000198,2]
[408060951,1773089438426,-1606.43883667,0.000198,2]
[408060952,1773089438438,-519.57820263,0.000198,2]
[408060953,1773089438454,-36.4303924,0.000198,2]
[408060954,1773089438463,-2000.0,0.000198,2]
[408060955,1773089438473,-2000.0,0.000198,2]
[408060956,1773089438482,-356.16868786,0.00019801,2]
[408060957,1773089438491,-322.0,0.00019807,2]
[408060958,1773089438500,-1618.60747896,0.00019809,2]
[408060959,1773089438509,-152.0,0.00019823,6]
[408060960,1773089438519,-1618.60747896,0.00019832,2]
[408060961,1773089438528,-150.0,0.00019837,2]
[408060962,1773089438538,-512.0,0.00019837,2]
[408060963,1773089438547,-180.02858772,0.00019837,2]
[408060964,1773089438556,-500.0,0.00019837,2]
[408060965,1773089438565,-597.72775305,0.00019855,2]
[408060966,1773089440088,-150.0,0.00019239,2]
[408060967,1773089440099,-150.0,0.00019673,2]
[408060968,1773089440108,-150.0,0.00019673,2]
[408060969,1773089440118,-2500.0,0.00019699,2]
[408060970,1773089440127,-150.0,0.00019728,2]
[408060971,1773089440138,-250.0,0.00019728,2]
[408060972,1773089440147,-150.0,0.00019728,2]
[408060973,1773089440158,-500.0,0.00019783,2]
[408060974,1773089440168,-200.0,0.00019783,2]
[408060975,1773089440178,-150.0,0.00019783,2]
[408060976,1773089440187,-344.48652071,0.00019794,2]
[408060977,1773089440196,-356.85218703,0.00019794,2]
[408060978,1773089440206,-282.73497124,0.00019794,2]
[408060979,1773089440215,-346.80821095,0.00019794,2]
[408060980,1773089440225,-500.0,0.00019794,2]
[408060981,1773089440234,-500.0,0.00019794,2]
[408060982,1773089440243,-500.0,0.00019794,2]
[408060983,1773089440254,-500.0,0.00019794,2]
[408060984,1773089440264,-500.0,0.00019794,2]
[408060985,1773089440274,-500.0,0.00019794,2]
[408060986,1773089440284,-500.0,0.00019794,2]
[408060987,1773089440294,-500.0,0.00019794,2]
[408060988,1773089440303,-500.0,0.00019794,2]
[408060989,1773089440313,-500.0,0.00019794,2]
[408060990,1773089440322,-500.0,0.00019794,2]
[408060991,1773089440332,-500.0,0.00019794,2]
[408060992,1773089440341,-500.0,0.00019794,2]
[408060993,1773089440351,-500.0,0.00019794,2]
[408060994,1773089440360,-500.0,0.00019794,2]
[408060995,1773089440369,-500.0,0.00019794,2]
[408060996,1773089440378,-500.0,0.00019794,2]
[408060997,1773089440387,-500.0,0.00019794,2]
[408060998,1773089440396,-500.0,0.00019794,2]
[408060999,1773089440406,-356.98617621,0.00019794,2]
[408061000,1773089440415,-500.0,0.00019794,2]
[408061001,1773089440424,-500.0,0.00019837,2]
[408061002,1773089440434,-150.0,0.00019837,2]
[408061003,1773089440443,-1020.87972591,0.00019855,2]
[408061004,1773089440453,-500.0,0.00019856,2]
[408061005,1773089440462,-500.0,0.00019856,2]
[408061006,1773089440472,-500.0,0.00019856,2]
[408061007,1773089440483,-1000.0,0.00019862,2]
[408061008,1773089440492,-16833.62292205,0.00019872,2]
[408061009,1773089440503,-16833.62292203,0.00019875,2]
[408061010,1773089440519,-1618.60747896,0.00019877,2]
[408061011,1773089440529,-16833.62292203,0.00019878,2]
[408061012,1773089440540,-16833.62292203,0.00019881,2]
[408061013,1773089440549,-16833.62292203,0.00019884,2]
[408061014,1773089440558,-16833.62292203,0.00019888,2]
[408061015,1773089440568,-3472.673,0.00019888,2]
[408061016,1773089440577,-170.344,0.00019888,2]
[408061017,1773089440590,-16833.62292203,0.00019891,2]
[408061018,1773089440601,-500.0,0.00019892,2]
[408061019,1773089440611,-500.0,0.00019892,2]
[408061020,1773089440620,-205.0,0.00019892,2]
[408061021,1773089440630,-16833.62292203,0.00019894,2]
[408061023,1773089440641,-16833.62292203,0.00019897,2]
[408061024,1773089440650,-500.0,0.00019898,2]
[408061025,1773089440660,-500.0,0.00019898,2]
[408061026,1773089440669,-5000.0,0.00019898,2]
[408061027,1773089440678,-160.43612175,0.00019899,2]